bitfinex/quotes_ETHUSD_20250623
["timestamp","ask_amount","ask_price","bid_price","bid_amount"]
[1750669298393,1.866,2263.0,2262.4,0.8199]
[1750669298799,1.866,2263.0,2262.4,5.23997343]
[1750669299110,1.866,2263.0,2262.4,1.83010946]
[1750669299310,1.866,2262.9,2262.6,4.41959876]
[1750669299511,1.866,2262.9,2262.6,4.46379015]
[1750669299747,1.866,2262.9,2262.6,0.04419139]
[1750669300212,1.866,2262.9,2262.6,0.04419144]
[1750669302516,1.866,2262.9,2262.5,0.8199]
[1750669305702,1.866,2262.9,2262.8,0.7904]
[1750669310023,1.866,2262.9,2262.5,5.22844726]
[1750669310332,1.866,2262.9,2262.5,0.7644]
[1750669311053,1.866,2262.9,2262.5,5.18427817]
[1750669311197,1.866,2262.9,2262.5,5.22846924]
[1750669311525,1.866,2262.9,2262.6,0.9648392]
[1750669312031,1.866,2262.9,2262.6,5.38442765]
[1750669312206,1.866,2262.9,2262.7,0.8232]
[1750669314213,1.866,2262.9,2262.7,0.86739109]
[1750669314755,1.866,2262.9,2262.7,0.8232]
[1750669315234,1.866,2262.9,2262.7,1.34750214]
[1750669316834,1.866,2262.9,2262.3,0.779]
[1750669317902,1.866,2262.9,2262.3,5.19925928]
[1750669318322,1.866,2262.9,2262.4,4.42007974]
[1750669318738,1.866,2262.9,2262.3,5.19915554]
[1750669320033,1.866,2262.9,2262.3,5.19910767]
[1750669320236,1.866,2262.9,2262.4,1.96194978]
[1750669322731,1.866,2262.9,2262.3,0.779]
[1750669323524,1.866,2262.9,2262.3,5.19926826]
[1750669323860,1.866,2262.9,2262.4,4.46426609]
[1750669324028,1.866,2262.9,2262.4,0.04419536]
[1750669324354,1.862,2262.8,2262.4,11.43453972]
[1750669324567,1.862,2262.9,2262.5,6.38354515]
[1750669325561,1.862,2262.9,2262.6,4.41967974]
[1750669325730,1.862,2262.9,2262.5,6.38352686]
[1750669326658,1.862,2262.9,2262.5,1.96374583]
[1750669328440,1.862,2262.9,2262.5,1.91955397]
[1750669328642,1.862,2262.9,2262.5,0.7761]
[1750669329063,1.862,2262.9,2262.4,7.139]
[1750669329359,1.862,2262.9,2262.3,0.8002]
[1750669329360,1.862,2262.9,2262.3,5.22045586]
[1750669329560,1.862,2262.9,2262.3,0.8002]
[1750669329734,0.0697,2262.8,2262.3,5.22046067]
[1750669329938,0.0697,2262.8,2262.4,1.67788268]
[1750669332779,0.0697,2262.8,2262.3,0.8002]
[1750669332981,0.0697,2262.8,2262.2,11.55847399]
[1750669333659,0.0697,2262.8,2262.2,7.138]
[1750669333863,0.0697,2262.8,2262.1,0.7568]
[1750669334975,0.0697,2262.8,2262.0,12.00336917]
[1750669334976,0.0697,2262.8,2262.0,0.44565385]
[1750669335155,1.26287,2262.8,2261.9,19.32280236]
[1750669335475,1.26287,2262.8,2262.0,4.42078688]
[1750669335633,1.26287,2262.8,2261.9,14.90186512]
[1750669335961,0.0697,2262.8,2262.2,5.24384341]
[1750669336264,0.0697,2262.8,2262.2,0.8235]
[1750669336469,0.0697,2262.8,2261.8,7.9713]
[1750669336470,0.0697,2262.6,2261.8,7.9713]
[1750669336771,0.0697,2262.6,2261.8,12.39246737]
[1750669336972,0.41266608,2262.5,2261.8,14.20674383]
[1750669337187,0.0697,2262.2,2261.6,1.329018]
[1750669337331,0.0697,2262.2,2261.5,5.6849309]
[1750669337967,1.862,2262.1,2261.8,4.42123986]
[1750669338175,1.862,2262.1,2261.7,4.42138436]
[1750669338373,1.862,2262.1,2261.6,11.39190685]
[1750669338538,1.862,2262.1,2261.6,6.26214338]
[1750669340045,1.862,2262.1,2261.6,1.84060165]
[1750669340245,1.862,2262.1,2261.5,5.24400619]
[1750669340453,1.862,2262.1,2261.5,12.21437131]
[1750669340630,0.0697,2262.2,2261.5,4.42182592]
[1750669340849,1.862,2262.1,2261.5,4.42182592]
[1750669341059,1.862,2262.1,2261.4,4.86838966]
[1750669341379,1.862,2262.1,2261.4,7.41688187]
[1750669341677,1.862,2262.1,2261.4,11.83873952]
[1750669341875,0.0697,2262.2,2261.6,0.8155]
[1750669342175,1.862,2262.0,2261.6,5.23699731]
[1750669342760,1.862,2262.0,2261.7,0.04420931]
[1750669343144,1.862,2262.0,2261.6,5.23699731]
[1750669343677,1.862,2262.0,2261.6,1.16896712]
[1750669344578,1.862,2262.0,2261.6,5.59059271]
[1750669344960,0.0697,2262.1,2261.6,1.16896712]
[1750669345291,1.9317,2262.1,2261.6,1.16896712]
[1750669345446,1.9317,2262.1,2261.6,0.04420931]
[1750669345647,0.0697,2261.9,2261.0,10.44657203]
[1750669345846,0.0697,2261.9,2261.0,14.42275004]
[1750669346381,0.55,2261.8,2260.9,0.7511]
[1750669346598,0.0697,2261.6,2260.8,4.42303893]
[1750669346900,1.866,2261.5,2260.7,9.67885334]
[1750669347049,0.0697,2261.4,2260.7,5.25553975]
[1750669348260,0.0697,2261.4,2260.7,5.69799844]
[1750669348445,0.0697,2261.4,2260.7,2.30240764]
[1750669348647,0.0697,2261.4,2260.6,5.19708235]
[1750669348870,0.0697,2261.3,2260.5,4.42375314]
[1750669349477,0.0697,2261.3,2260.4,1.329743]
[1750669349681,1.9357,2261.5,2260.7,5.19553015]
[1750669349982,0.0697,2261.5,2261.0,4.42280428]
[1750669350350,0.0697,2261.5,2260.9,4.42287763]
[1750669350684,0.0697,2261.5,2260.9,4.42300962]
[1750669350979,0.0697,2261.5,2260.8,5.96648434]
[1750669351679,0.0697,2261.5,2260.9,4.4230095]
[1750669351886,0.0697,2261.5,2260.9,1.83179096]
[1750669352177,0.0697,2261.5,2260.9,4.42290023]
[1750669352386,0.0697,2261.7,2261.2,4.42234818]
[1750669352953,0.0697,2261.7,2261.1,5.25461333]
[1750669353180,1.866,2261.6,2261.1,0.8321]
[1750669353486,1.866,2261.6,2260.9,5.2451063]
[1750669353790,1.866,2261.6,2260.8,1.54338231]
[1750669353791,0.0697,2261.5,2260.8,17.29602741]
[1750669354016,0.0697,2261.5,2260.9,0.04422405]
[1750669354809,0.0697,2261.5,2261.0,4.42273783]
[1750669354951,1.866,2261.4,2261.1,4.46682705]
[1750669355785,1.866,2261.4,2261.1,0.04422248]
[1750669357106,1.866,2261.4,2260.9,4.42291999]
[1750669357773,1.866,2261.4,2261.0,4.42281391]
[1750669358107,1.866,2261.4,2260.9,4.4229175]
[1750669359824,1.866,2261.4,2260.7,6.51011308]
[1750669359980,1.866,2261.4,2260.7,8.2977609]
[1750669360306,0.0697,2261.3,2260.8,4.42321181]
[1750669362499,0.0697,2261.3,2260.7,7.54046447]
[1750669362684,0.0697,2261.3,2260.7,4.42327365]
[1750669363210,0.0697,2261.3,2260.5,2.162037]
[1750669363413,0.0697,2261.3,2260.5,5.25609936]
[1750669363603,0.0697,2261.3,2260.4,0.45017129]
[1750669363788,0.0697,2261.3,2260.2,4.42431714]
[1750669364122,0.0697,2261.0,2260.2,4.46855173]
[1750669364304,0.0697,2260.8,2260.2,4.46855173]
[1750669365077,0.0697,2260.8,2260.3,4.42417399]
[1750669365576,0.0697,2260.8,2260.4,4.42389499]
[1750669365784,1.867,2260.7,2260.4,4.42389499]
[1750669366174,0.0697,2260.8,2260.3,4.42411236]
[1750669366403,1.867,2260.7,2260.3,4.42411236]
[1750669366605,1.867,2260.7,2260.1,15.20949323]
[1750669366802,1.867,2260.7,2260.1,18.02770899]
[1750669367112,0.0697,2260.6,2260.1,13.60321576]
[1750669367412,0.0697,2260.6,2260.0,5.92779026]
[1750669368820,0.0697,2261.0,2260.2,0.7651]
[1750669369020,0.0697,2261.0,2260.0,5.92779026]
[1750669369021,0.0697,2260.9,2260.0,5.92779026]
[1750669369244,0.0697,2260.6,2260.0,5.92779026]
[1750669369523,1.9367,2260.5,2260.0,5.92779026]
[1750669375190,1.867,2260.4,2260.0,5.92779026]
[1750669376329,1.867,2260.3,2260.0,5.92779026]
[1750669376627,1.891,2260.2,2260.0,5.92779026]
[1750669378797,10.0697,2260.5,2260.0,5.92779026]
[1750669378998,1.891,2260.4,2260.0,10.39673997]
[1750669379321,0.0697,2260.5,2260.0,11.1821957]
[1750669379527,1.891,2260.3,2260.0,5.92779026]
[1750669380016,1.891,2260.3,2260.0,5.97203207]
[1750669380201,0.0697,2260.5,2260.0,11.96190182]
[1750669380395,1.891,2260.4,2260.1,4.42441519]
[1750669380592,10.0,2260.7,2260.0,11.91766771]
[1750669380593,1.891,2260.3,2260.2,0.7575]
[1750669380792,1.891,2260.3,2260.2,5.18188722]
[1750669381324,1.891,2260.3,2260.2,0.7575]
[1750669382014,1.891,2260.4,2260.2,6.89183029]
[1750669382520,1.891,2260.4,2260.2,2.51170471]
[1750669382724,1.891,2260.4,2260.3,4.42419147]
[1750669383027,1.891,2260.4,2260.2,2.51170471]
[1750669383929,1.891,2260.4,2260.2,2.46746807]
[1750669384292,1.891,2260.4,2260.2,6.93600735]
[1750669384492,1.891,2260.4,2260.3,1.13604191]
[1750669385635,10.627,2260.8,2260.3,1.13604191]
[1750669385806,0.0697,2261.5,2260.7,0.7819]
[1750669386142,0.0697,2261.5,2260.7,5.20528205]
[1750669386143,1.891,2261.4,2260.7,5.20528205]
[1750669386330,3.15017,2261.4,2260.7,5.20528205]
[1750669386505,3.15017,2261.4,2260.8,0.0442247]
[1750669386704,1.891,2261.3,2260.8,0.0442247]
[1750669387517,1.891,2261.3,2260.8,8.8904908]
[1750669387718,1.891,2261.2,2260.9,1.329673]
[1750669390146,0.0697,2261.1,2260.5,0.7819]
[1750669390315,0.0697,2261.1,2260.6,0.04422946]
[1750669390514,0.0697,2261.1,2260.3,11.90204191]
[1750669390841,0.0697,2261.1,2260.4,2.05946085]
[1750669391044,0.0697,2261.1,2260.6,1.329855]
[1750669391243,0.0697,2261.1,2260.3,10.766]
[1750669391471,7.171,2261.1,2260.4,1.329991]
[1750669391749,0.0697,2261.0,2260.4,1.329991]
[1750669391923,0.0697,2261.0,2260.4,1.37422631]
[1750669392123,1.68112985,2261.0,2260.4,1.37422631]
[1750669393730,1.68112985,2261.0,2260.4,1.329991]
[1750669394534,11.68112985,2261.0,2260.4,1.329991]
[1750669394720,0.0697,2260.9,2260.0,11.16346493]
[1750669394915,0.0697,2260.9,2260.0,6.73879026]
[1750669395228,0.0697,2260.8,2260.0,5.92779026]
[1750669395438,0.0697,2260.6,2260.0,5.92779026]
[1750669395643,0.0697,2260.6,2260.1,1.330173]
[1750669395831,0.0697,2260.5,2260.1,1.330173]
[1750669396152,0.0697,2260.5,2260.1,1.37441439]
[1750669396353,1.891,2260.4,2260.1,3.24537208]
[1750669396526,1.891,2260.4,2260.1,1.330173]
[1750669396728,1.891,2260.4,2260.1,1.37441437]
[1750669397253,1.891,2260.4,2260.1,1.330173]
[1750669397675,1.891,2260.4,2260.1,1.37441438]
[1750669399030,1.891,2260.4,2260.1,1.330173]
[1750669400263,1.891,2260.4,2260.1,1.37441438]
[1750669401561,1.891,2260.3,2260.1,1.37441438]
[1750669401763,1.891,2260.3,2260.1,1.330173]
[1750669405198,1.891,2260.3,2260.1,2.49846016]
[1750669405369,1.891,2260.3,2260.1,1.330173]
[1750669405563,1.891,2260.2,2260.1,1.330173]
[1750669406394,0.0697,2260.5,2260.1,1.330173]
[1750669406583,1.885,2260.4,2260.1,1.3744144]
[1750669406784,1.885,2260.4,2260.1,1.330173]
[1750669407866,0.0697,2260.7,2260.1,1.330173]
[1750669408067,1.885,2260.6,2260.1,3.63918355]
[1750669408390,11.885,2260.6,2260.1,3.63918355]
[1750669408593,11.885,2260.6,2260.2,0.04423847]
[1750669409286,1.885,2260.5,2260.1,1.330173]
[1750669409682,0.0697,2260.7,2260.2,0.84833848]
[1750669409884,1.885,2260.6,2260.4,4.42390597]
[1750669410214,1.885,2260.5,2260.3,11.40667996]
[1750669410369,1.885,2260.5,2260.4,4.42398834]
[1750669410770,1.885,2260.5,2260.4,5.75383734]
[1750669411022,1.885,2260.5,2260.4,7.55031931]
[1750669412405,0.0697,2261.1,2260.5,4.42367478]
[1750669412607,0.0697,2261.1,2260.6,0.04422874]
[1750669412783,1.885,2261.0,2260.9,11.40561587]
[1750669412984,1.885,2261.2,2261.0,0.7614]
[1750669413208,1.885,2261.2,2261.1,0.04422153]
[1750669413376,1.885,2261.2,2261.1,1.329543]
[1750669415804,10.7007,2261.6,2261.1,7.10615088]
[1750669416002,1.885,2261.5,2261.2,0.04422054]
[1750669416198,7.3147,2261.8,2261.2,4.46663548]
[1750669416199,1.885,2261.4,2261.2,4.46663548]
[1750669416522,1.885,2261.4,2261.2,0.04422054]
[1750669416812,1.885,2261.4,2261.1,14.52641158]
[1750669416813,1.885,2261.4,2261.1,10.10390501]
[1750669417007,1.885,2261.4,2261.2,1.57301755]
[1750669417207,1.885,2261.4,2261.2,1.52880035]
[1750669417420,0.0697,2261.8,2261.2,5.95121552]
[1750669417601,1.885,2261.7,2261.2,5.99543264]
[1750669417800,0.0697,2261.8,2261.2,5.99543264]
[1750669417801,1.885,2261.6,2261.3,0.7563]
[1750669418011,1.885,2261.5,2261.4,0.67516276]
[1750669418880,1.885,2261.5,2261.4,5.0972022]
[1750669419180,1.885,2261.5,2261.4,0.67516276]
[1750669421614,1.884,2261.6,2261.4,0.67516276]
[1750669421914,1.884,2261.6,2261.5,0.04421365]
[1750669422218,1.884,2261.6,2261.5,1.73023088]
[1750669423091,1.884,2261.6,2261.4,0.67516276]
[1750669423295,1.884,2261.6,2261.5,1.329272]
[1750669423597,10.6997,2262.0,2261.5,1.329272]
[1750669423899,1.884,2261.9,2261.5,1.329272]
[1750669426014,1.884,2261.9,2261.4,0.67516276]
[1750669426392,1.884,2261.8,2261.6,1.32923]
[1750669429420,1.884,2261.8,2261.6,1.37344108]
[1750669429607,10.63,2262.0,2261.7,0.7647]
[1750669429807,1.884,2261.9,2261.7,0.7647]
[1750669430527,1.884,2261.9,2261.6,1.32923]
[1750669430823,1.884,2261.9,2261.6,2.10686766]
[1750669431016,1.884,2261.8,2261.6,1.37344018]
[1750669431423,1.884,2261.8,2261.6,1.37344066]
[1750669433542,1.884,2261.8,2261.6,1.32923]
[1750669434360,10.63,2262.0,2261.6,1.32923]
[1750669434541,1.884,2261.9,2261.6,1.32923]
[1750669437948,10.63,2262.0,2261.6,1.32923]
[1750669438250,1.87,2261.9,2261.7,0.04420945]
[1750669438965,1.87,2261.9,2261.5,5.77171842]
[1750669439165,1.87,2261.9,2261.7,1.3292]
[1750669439476,1.87,2261.9,2261.7,1.37340994]
[1750669439642,1.87,2261.9,2261.7,5.79476095]
[1750669439977,1.87,2261.9,2261.7,1.37340994]
[1750669440631,1.87,2261.9,2261.7,1.3292]
[1750669441532,0.0697,2261.8,2261.7,1.3292]
[1750669441725,0.0697,2261.8,2261.0,0.8129]
[1750669441726,0.0697,2261.7,2261.0,0.8129]
[1750669441925,10.0697,2261.5,2261.2,1.329543]
[1750669442157,2.2811406,2261.4,2260.8,0.8129]
[1750669442359,1.87,2261.4,2261.1,1.329719]
[1750669444482,3.78607,2261.4,2260.8,0.85712656]
[1750669444768,0.0697,2261.5,2261.0,4.4227226]
[1750669444932,0.0697,2261.5,2261.1,0.0442218]
[1750669444933,1.87,2261.3,2261.1,0.0442218]
[1750669445259,1.87,2261.3,2261.0,0.0442221]
[1750669445465,1.87,2261.3,2260.9,1.329719]
[1750669446534,0.0697,2261.2,2260.6,0.7707]
[1750669446768,0.0697,2261.2,2260.8,1.329749]
[1750669447146,10.0697,2261.0,2260.4,0.44717587]
[1750669447342,10.0697,2261.0,2260.4,1.329943]
[1750669448150,10.0697,2261.0,2260.4,5.7538556]
[1750669448661,10.0697,2261.0,2260.4,5.79808971]
[1750669448864,10.0697,2261.0,2260.5,1.02222448]
[1750669449453,10.0697,2261.0,2260.4,1.329943]
[1750669450960,10.0697,2261.0,2260.4,1.77499467]
[1750669451344,7.05229849,2260.9,2260.4,1.329943]
[1750669451669,1.871,2260.8,2260.2,0.7707]
[1750669451843,1.871,2260.8,2260.2,10.19567879]
[1750669452040,1.871,2260.8,2260.2,14.61996885]
[1750669453163,1.871,2260.8,2260.2,10.19567879]
[1750669453343,1.871,2260.8,2260.2,2.4423803]
[1750669453744,1.871,2260.8,2260.2,2.48661839]
[1750669454043,1.871,2260.8,2260.2,6.91098241]
[1750669454255,1.871,2260.8,2260.3,1.38935809]
[1750669454456,0.0697,2260.9,2260.3,1.38935809]
[1750669454638,1.871,2260.7,2260.3,1.38935809]
[1750669454842,0.0697,2260.6,2260.3,1.38935809]
[1750669455170,0.0697,2260.6,2260.2,1.330061]
[1750669455351,0.0697,2260.6,2260.0,10.39677716]
[1750669455551,0.0697,2260.6,2260.1,1.330191]
[1750669456878,0.0697,2260.6,2260.0,10.39680974]
[1750669457079,0.0697,2260.6,2260.1,1.03968097]
[1750669458279,1.871,2260.5,2260.2,0.81164242]
[1750669459249,1.871,2260.5,2260.2,0.04424242]
[1750669460861,1.871,2260.5,2260.1,1.03968097]
[1750669461059,1.871,2260.5,2260.2,0.61115555]
[1750669461269,1.871,2260.5,2260.0,6.36520166]
[1750669461475,1.871,2260.5,2260.0,10.83404812]
[1750669461779,1.871,2260.5,2260.0,10.78980696]
[1750669462483,1.871,2260.5,2260.1,4.46874059]
[1750669462650,0.0697,2260.6,2260.2,1.52587114]
[1750669462853,1.871,2260.4,2260.2,1.52587114]
[1750669464187,10.6997,2260.9,2260.4,4.42397873]
[1750669464376,1.871,2260.8,2260.5,0.04423322]
[1750669464883,1.871,2260.8,2260.5,2.3097571]
[1750669465281,1.871,2260.8,2260.6,1.329861]
[1750669465913,1.871,2260.7,2260.5,6.77772552]
[1750669466058,10.63,2260.9,2260.6,1.329861]
[1750669466252,1.871,2260.8,2260.6,1.329861]
[1750669466450,1.871,2260.8,2260.7,0.89005865]
[1750669467703,1.9387,2261.1,2260.7,7.87265714]
[1750669467910,1.869,2261.1,2260.8,0.04422577]
[1750669468305,0.0697,2261.3,2260.8,4.46735628]
[1750669468593,1.869,2261.2,2260.9,2.00490134]
[1750669468777,1.869,2261.2,2261.0,0.04422317]
[1750669468995,0.0697,2261.6,2261.0,0.0442232]
[1750669469388,0.0697,2261.6,2261.1,4.42260827]
[1750669469389,1.869,2261.5,2261.1,4.42260827]
[1750669469590,1.869,2261.5,2261.2,0.04421935]
[1750669469791,1.869,2261.5,2261.2,0.93844265]
[1750669469990,0.0697,2261.6,2261.2,0.93844265]
[1750669470208,1.869,2261.5,2261.3,0.7697]
[1750669470408,1.869,2261.5,2261.3,5.19192214]
[1750669470615,1.869,2261.5,2261.3,0.7697]
[1750669470778,1.869,2261.5,2261.4,2.02948735]
[1750669471317,1.869,2261.5,2261.2,0.8942233]
[1750669471513,10.6997,2261.8,2261.2,8.1202233]
[1750669471717,1.869,2261.6,2261.2,12.58782667]
[1750669472017,1.9387,2261.6,2261.2,8.1212233]
[1750669473410,1.869,2261.6,2261.3,0.04421649]
[1750669473590,1.869,2261.6,2261.3,1.82300948]
[1750669475008,1.869,2261.6,2261.4,1.329407]
[1750669478023,1.869,2261.6,2261.2,0.44753974]
[1750669478202,1.869,2261.6,2261.2,1.329407]
[1750669480138,1.869,2261.6,2261.2,1.77852482]
[1750669482203,1.869,2261.6,2261.2,3.64064195]
[1750669483397,1.869,2261.6,2261.2,1.77852482]
[1750669485145,1.869,2261.6,2261.2,1.82274355]
[1750669485454,0.0697,2261.5,2261.2,1.329407]
[1750669491889,0.0697,2261.5,2260.8,4.46732941]
[1750669492041,0.0697,2261.5,2260.9,1.329707]
[1750669493239,0.0697,2261.5,2261.0,0.04422655]
[1750669493444,0.0697,2261.5,2261.0,0.87222655]
[1750669493749,0.0697,2261.5,2261.0,5.29504138]
[1750669494382,10.0697,2261.7,2261.1,11.40504977]
[1750669494539,1.869,2261.5,2261.2,0.04421962]
[1750669495745,1.869,2261.5,2261.1,7.02681824]
[1750669495948,1.869,2261.5,2261.1,9.00970535]
[1750669496187,1.869,2261.5,2261.1,2.02710686]
[1750669497383,1.869,2261.5,2261.1,0.04421975]
[1750669497786,1.869,2261.5,2261.1,1.37374475]
[1750669498446,1.869,2261.5,2261.1,1.329525]
[1750669498881,1.869,2261.5,2261.1,1.37374552]
[1750669500603,1.869,2261.5,2261.1,1.329525]
[1750669502475,0.41216748,2261.4,2261.1,1.329525]
[1750669502701,0.0697,2261.4,2261.1,1.329525]
[1750669503386,1.869,2261.5,2261.1,1.329525]
[1750669503565,0.41216842,2261.4,2261.1,1.329525]
[1750669503765,1.869,2261.5,2261.1,1.329525]
[1750669504078,0.41216777,2261.4,2261.1,1.329525]
[1750669504275,0.41216777,2261.3,2260.8,0.7877]
[1750669504588,0.4120438,2261.2,2261.0,1.329672]
[1750669504791,0.4120438,2261.1,2261.0,1.329672]
[1750669505293,0.4120438,2261.1,2260.6,0.04423003]
[1750669505489,1.865,2261.0,2260.6,1.37405603]
[1750669505787,1.865,2261.0,2260.6,5.79765181]
[1750669505988,1.865,2261.0,2260.8,6.98259849]
[1750669506197,1.865,2261.2,2261.0,0.7755]
[1750669507284,1.865,2261.2,2261.0,0.81972383]
[1750669507981,1.865,2261.2,2261.0,0.7755]
[1750669511413,1.865,2261.2,2261.1,1.32956]
[1750669513811,1.865,2261.3,2261.1,1.32956]
[1750669514113,1.865,2261.3,2261.2,1.35545587]
[1750669514316,1.865,2261.4,2261.2,2.16985587]
[1750669514920,1.865,2261.4,2261.1,1.32956]
[1750669515381,1.9347,2261.4,2261.1,1.32956]
[1750669515581,0.41230681,2261.3,2261.1,1.32956]
[1750669515783,1.9347,2261.4,2261.1,1.32956]
[1750669516214,0.41229503,2261.3,2261.1,1.32956]
[1750669516514,1.9347,2261.4,2261.1,1.32956]
[1750669516695,0.41228219,2261.3,2261.1,1.32956]
[1750669516896,1.9347,2261.4,2261.1,1.32956]
[1750669517107,0.41224495,2261.3,2261.1,1.32956]
[1750669517417,1.9347,2261.4,2261.1,1.32956]
[1750669517593,0.41226453,2261.3,2261.1,1.32956]
[1750669517797,1.9347,2261.4,2261.1,1.32956]
[1750669517996,0.4122648,2261.3,2261.1,1.32956]
[1750669518192,1.9347,2261.4,2261.1,1.32956]
[1750669518396,0.41226509,2261.3,2261.1,1.32956]
[1750669518592,1.9347,2261.4,2261.1,1.32956]
[1750669518811,0.41226156,2261.3,2261.1,1.32956]
[1750669519016,1.9347,2261.4,2261.1,1.32956]
[1750669519211,0.41223971,2261.3,2261.1,1.32956]
[1750669519418,1.9347,2261.4,2261.1,1.32956]
[1750669519622,0.41222404,2261.3,2261.1,1.32956]
[1750669519820,1.9347,2261.4,2261.1,1.32956]
[1750669520003,0.41222332,2261.3,2261.1,1.32956]
[1750669520204,7.212,2261.3,2260.7,4.4233279]
[1750669520412,7.212,2261.3,2261.1,1.329636]
[1750669520610,7.212,2261.3,2260.6,4.42350939]
[1750669520611,7.212,2261.3,2260.7,4.42328007]
[1750669520814,7.212,2261.3,2260.8,1.329637]
[1750669521130,7.212,2261.3,2260.8,5.75284427]
[1750669521303,7.212,2261.3,2260.8,1.329637]
[1750669522791,7.212,2261.3,2260.8,2.27254233]
[1750669523422,7.212,2261.3,2260.8,6.69574917]
[1750669523624,7.212,2261.3,2260.8,2.27254233]
[1750669527732,7.212,2261.3,2260.7,0.8109]
[1750669527931,7.212,2261.3,2260.8,0.04422462]
[1750669528342,7.212,2261.3,2260.7,6.56397723]
[1750669528635,7.212,2261.3,2260.7,6.56396466]
[1750669530533,0.41270089,2261.2,2260.7,6.56396466]
[1750669530704,7.212,2261.3,2260.8,0.04422636]
[1750669531039,0.41280631,2261.2,2260.8,0.04422636]
[1750669531209,7.212,2261.3,2260.8,0.04422636]
[1750669531411,0.41279858,2261.2,2260.8,4.46743405]
[1750669531628,0.0697,2261.4,2260.9,6.98259849]
[1750669531795,1.864,2261.2,2260.9,12.50197482]
[1750669532414,1.864,2261.2,2261.0,1.329613]
[1750669534232,1.864,2261.2,2261.0,2.159513]
[1750669536396,1.864,2261.2,2261.0,1.329613]
[1750669547116,10.63,2261.8,2261.2,4.42243056]
[1750669547332,1.864,2262.0,2261.5,11.40436857]
[1750669547564,1.864,2261.9,2261.6,0.04421053]
[1750669547852,0.7523,2261.8,2261.4,0.7681]
[1750669548160,0.7523,2261.8,2261.6,1.329301]
[1750669548462,0.26163,2261.7,2261.6,1.329301]
[1750669550136,0.7523,2261.8,2261.6,1.329301]
[1750669551236,1.864,2261.9,2261.6,1.329301]
[1750669551441,0.777,2261.8,2261.6,1.329301]
[1750669551953,1.864,2261.8,2261.6,5.75085978]
[1750669552263,1.864,2261.8,2261.6,5.79507099]
[1750669552444,1.864,2261.8,2261.6,7.59799232]
[1750669552645,1.864,2262.0,2261.8,4.42115334]
[1750669552855,1.864,2262.1,2261.9,0.79830539]
[1750669553039,1.864,2262.2,2261.9,7.78090388]
[1750669553237,1.864,2262.3,2262.1,6.98259849]
[1750669553628,17.837,2262.7,2262.2,4.42046473]
[1750669553629,1.864,2262.4,2262.2,4.42046473]
[1750669554331,1.864,2262.4,2262.1,11.4031377]
[1750669555177,10.0,2262.6,2262.1,11.4031377]
[1750669555461,10.628,2262.7,2262.3,0.7574]
[1750669555776,1.864,2262.6,2262.4,0.0441955]
[1750669556180,1.864,2262.6,2262.4,1.3729545]
[1750669557836,1.864,2262.6,2262.4,1.328759]
[1750669559689,1.864,2262.6,2262.1,6.89747026]
[1750669559891,1.864,2262.6,2262.2,1.13182464]
[1750669562296,1.864,2262.6,2262.3,0.04419811]
[1750669563405,1.864,2262.6,2262.2,1.13182464]
[1750669563702,1.864,2262.6,2262.3,0.04419812]
[1750669565591,1.864,2262.6,2262.2,1.13182464]
[1750669565813,1.864,2262.6,2262.3,1.63407294]
[1750669566103,0.7574,2262.5,2261.9,5.23019106]
[1750669566271,0.7574,2262.5,2262.0,5.74980019]
[1750669566591,1.864,2262.6,2262.1,0.04420148]
[1750669566764,1.864,2262.6,2262.0,5.74980019]
[1750669566963,9.069,2262.6,2262.1,1.79625897]
[1750669568384,11.4592,2262.7,2262.1,8.77885746]
[1750669568590,1.862,2262.5,2262.1,13.19944813]
[1750669568804,1.862,2262.5,2262.1,8.77885746]
[1750669568961,1.862,2262.5,2262.1,1.79625897]
[1750669569901,1.862,2262.5,2262.0,1.328947]
[1750669569902,0.7563,2262.3,2262.0,1.328947]
[1750669570201,0.7563,2262.1,2261.3,10.7821]
[1750669570495,1.862,2262.0,2261.4,1.329307]
[1750669570654,1.862,2262.0,2261.5,1.65335607]
[1750669571065,1.862,2262.0,2261.5,1.69756994]
[1750669571270,1.860674,2262.0,2261.5,6.11931152]
[1750669572803,0.7563,2262.1,2261.6,4.42163923]
[1750669572993,9.067,2262.0,2261.7,0.61192092]
[1750669573385,9.067,2262.0,2261.5,1.65335607]
[1750669573974,9.067,2262.0,2261.5,1.69756912]
[1750669574603,9.067,2262.0,2261.5,0.04421305]
[1750669574999,9.067,2262.0,2261.3,4.42214171]
[1750669575499,9.067,2262.0,2261.4,0.04421372]
[1750669575674,9.067,2262.0,2261.3,4.42212481]
[1750669575675,0.85321322,2261.9,2261.3,4.42212481]
[1750669575871,0.85321322,2261.9,2261.3,6.18150469]
[1750669576075,0.85321322,2261.9,2261.3,10.60353883]
[1750669576398,0.85321322,2261.9,2261.3,6.18145893]
[1750669576589,0.85321322,2261.9,2261.3,6.18144109]
[1750669577097,0.809,2261.9,2261.4,4.46622753]
[1750669577989,0.809,2261.9,2261.5,4.42183664]
[1750669578195,0.809,2261.9,2261.4,4.46616428]
[1750669578501,0.809,2261.9,2261.5,4.42183194]
[1750669579167,0.809,2261.9,2261.5,0.04421373]
[1750669579367,0.809,2261.9,2261.4,12.01936964]
[1750669579600,9.067,2262.0,2261.4,12.01936964]
[1750669579601,9.067,2262.0,2261.6,4.42155832]
[1750669579963,9.067,2262.0,2261.5,0.04421373]
[1750669579964,9.067,2262.0,2261.5,4.42172603]
[1750669580193,9.067,2262.0,2261.4,12.01948181]
[1750669580806,0.7503,2261.9,2261.4,12.01948181]